[Event "Saint Louis Blitz 2020"]
[Site "Saint Louis"]
[Date "2020.09.18"]
[Round "6"]
[White "Harikrishna, Pentala"]
[Black "Aronian, Levon"]
[Result "1/2-1/2"]
[ECO "A49"]
[WhiteElo "2732"]
[BlackElo "2773"]
[Annotator "ChessBase"]
[PlyCount "163"]
[EventDate "2020.09.18"]
[EventType "blitz"]
[EventCountry "USA"]
[SourceTitle "playchess.com"]
[Source "ChessBase"]
[SourceQuality "1"]
[TimeControl "300+3"]

1. d4 {[%emt 0:00:03]} Nf6 {[%emt 0:00:03]} 2. Nf3 {[%emt 0:00:05]} g6 {
[%emt 0:00:01]} 3. g3 {[%emt 0:00:01]} Bg7 {[%emt 0:00:01]} 4. Bg2 {[%emt 0:00:
01]} d5 {[%emt 0:00:01]} 5. O-O {[%emt 0:00:02]} O-O {[%emt 0:00:01]} 6. Bf4 {
[%emt 0:00:02]} c5 {[%emt 0:00:14]} 7. dxc5 {[%emt 0:00:01]} Na6 {[%emt 0:00:
07]} 8. c4 {[%emt 0:00:09]} Nxc5 {[%emt 0:00:09]} 9. cxd5 {[%emt 0:00:01]} Nxd5
{[%emt 0:00:26]} 10. Be5 {[%emt 0:00:01]} Bxe5 {[%emt 0:00:41]} 11. Nxe5 {
[%emt 0:00:02]} Nf6 {[%emt 0:00:01]} 12. Qc1 {[%emt 0:01:16]} Qd6 {[%emt 0:00:
21]} 13. Nc4 {[%emt 0:00:11]} Qa6 {[%emt 0:00:04]} 14. b4 {[%emt 0:01:14]} Nb3
{[%emt 0:00:35]} 15. b5 {[%emt 0:00:15]} Nxc1 {[%emt 0:00:23]} 16. bxa6 {
[%emt 0:00:02]} Nxe2+ {[%emt 0:00:00]} 17. Kh1 {[%emt 0:00:01]} Rb8 {[%emt 0:
00:03]} 18. Nbd2 {[%emt 0:00:21]} Nd4 {[%emt 0:00:16]} 19. axb7 {[%emt 0:01:01]
} Bxb7 {[%emt 0:00:02]} 20. Nb3 {[%emt 0:00:01]} Bxg2+ {[%emt 0:00:19]} 21.
Kxg2 {[%emt 0:00:02]} Rfc8 {[%emt 0:00:06]} 22. Nca5 {[%emt 0:00:22]} Nc6 {
[%emt 0:00:26]} 23. Nxc6 {[%emt 0:00:17]} Rxc6 {[%emt 0:00:01]} 24. Rac1 {
[%emt 0:00:00]} Ra6 {[%emt 0:00:12]} 25. Rc2 {[%emt 0:00:05]} Nd5 {[%emt 0:00:
06]} 26. Rd2 {[%emt 0:00:08]} e6 {[%emt 0:00:04]} 27. h4 {[%emt 0:00:14]} h5 {
[%emt 0:00:09]} 28. Rc1 {[%emt 0:00:02]} Kg7 {[%emt 0:00:10]} 29. Nd4 {[%emt 0:
00:04]} Rb4 {[%emt 0:00:25]} 30. Nf3 {[%emt 0:00:04]} Rba4 {[%emt 0:00:12]} 31.
Rcc2 {[%emt 0:00:01]} Rb6 {[%emt 0:00:27]} 32. Ng5 {[%emt 0:00:02]} Rb7 {
[%emt 0:00:02]} 33. Rd3 {[%emt 0:00:07]} Rab4 {[%emt 0:00:10]} 34. Rdd2 {
[%emt 0:00:07]} Rd7 {[%emt 0:00:03]} 35. Re2 {[%emt 0:00:06]} Rbb7 {[%emt 0:00:
05]} 36. Rc8 {[%emt 0:00:04]} Rbc7 {[%emt 0:00:12]} 37. Rb8 {[%emt 0:00:01]}
Nf6 {[%emt 0:00:04]} 38. Reb2 {[%emt 0:00:07]} Re7 {[%emt 0:00:03]} 39. Rd8 {
[%emt 0:00:02]} Rcd7 {[%emt 0:00:03]} 40. Rc8 {[%emt 0:00:01]} Rc7 {[%emt 0:00:
02]} 41. Rd8 {[%emt 0:00:02]} Rb7 {[%emt 0:00:01]} 42. Rc2 {[%emt 0:00:02]}
Rec7 {[%emt 0:00:02]} 43. Re2 {[%emt 0:00:02]} Rd7 {[%emt 0:00:03]} 44. Rc8 {
[%emt 0:00:02]} Rbc7 {[%emt 0:00:03]} 45. Rxc7 {[%emt 0:00:01]} Rxc7 {[%emt 0:
00:01]} 46. Rxe6 {[%emt 0:00:01]} Nh7 {[%emt 0:00:05]} 47. Ra6 {[%emt 0:00:06]}
Nxg5 {[%emt 0:00:03]} 48. hxg5 {[%emt 0:00:01]} Kf8 {[%emt 0:00:01]} 49. Kh3 {
[%emt 0:00:06]} Ke7 {[%emt 0:00:03]} 50. f4 {[%emt 0:00:04]} Kf8 {[%emt 0:00:
06]} 51. Ra4 {[%emt 0:00:05]} Kg7 {[%emt 0:00:02]} 52. g4 {[%emt 0:00:00]}
hxg4+ {[%emt 0:00:04]} 53. Kxg4 {[%emt 0:00:01]} Rb7 {[%emt 0:00:01]} 54. Ra6 {
[%emt 0:00:05]} Rc7 {[%emt 0:00:03]} 55. a4 {[%emt 0:00:01]} Re7 {[%emt 0:00:
02]} 56. a5 {[%emt 0:00:03]} Rc7 {[%emt 0:00:04]} 57. Kf3 {[%emt 0:00:01]} Re7
{[%emt 0:00:02]} 58. Rc6 {[%emt 0:00:03]} Kf8 {[%emt 0:00:03]} 59. Rc8+ {
[%emt 0:00:03]} Kg7 {[%emt 0:00:02]} 60. Rc6 {[%emt 0:00:10]} Kf8 {[%emt 0:00:
01]} 61. Rc5 {[%emt 0:00:06]} Kg7 {[%emt 0:00:09]} 62. f5 {[%emt 0:00:05]} gxf5
{[%emt 0:00:01]} 63. Rxf5 {[%emt 0:00:01]} Kg6 {[%emt 0:00:02]} 64. Rc5 {
[%emt 0:00:03]} Re6 {[%emt 0:00:03]} 65. Kf4 {[%emt 0:00:05]} a6 {[%emt 0:00:
04]} 66. Rd5 {[%emt 0:00:02]} Rc6 {[%emt 0:00:02]} 67. Re5 {[%emt 0:00:04]}
Rc4+ {[%emt 0:00:03]} 68. Kf3 {[%emt 0:00:01]} Rc1 {[%emt 0:00:05]} 69. Rd5 {
[%emt 0:00:03]} Rc4 {[%emt 0:00:05]} 70. Rd6+ {[%emt 0:00:03]} Kxg5 {[%emt 0:
00:02]} 71. Rxa6 {[%emt 0:00:00]} Ra4 {[%emt 0:00:02]} 72. Ra8 {[%emt 0:00:03]}
Kf5 {[%emt 0:00:02]} 73. a6 {[%emt 0:00:05]} Ra3+ {[%emt 0:00:02]} 74. Ke2 {
[%emt 0:00:01]} Kf4 {[%emt 0:00:01]} 75. a7 {[%emt 0:00:08]} f5 {[%emt 0:00:01]
} 76. Kd2 {[%emt 0:00:01]} Kf3 {[%emt 0:00:03]} 77. Rf8 {[%emt 0:00:04]} Ra2+ {
[%emt 0:00:02]} 78. Kc3 {[%emt 0:00:03]} Ra3+ {[%emt 0:00:01]} 79. Kb4 {
[%emt 0:00:02]} Rxa7 {[%emt 0:00:02]} 80. Rxf5+ {[%emt 0:00:01]} Ke4 {[%emt 0:
00:00]} 81. Ra5 {[%emt 0:00:03]} Rxa5 {[%emt 0:00:01]} 82. Kxa5 {[%emt 0:00:03]
} 1/2-1/2

[Event "Saint Louis Blitz 2020"]
[Site "Saint Louis"]
[Date "2020.09.18"]
[Round "6"]
[White "Xiong, Jeffery"]
[Black "Nepomniachtchi, Ian"]
[Result "1/2-1/2"]
[ECO "C47"]
[WhiteElo "2709"]
[BlackElo "2784"]
[Annotator "ChessBase"]
[PlyCount "166"]
[EventDate "2020.09.18"]
[EventType "blitz"]
[EventCountry "USA"]
[SourceTitle "playchess.com"]
[Source "ChessBase"]
[SourceQuality "1"]
[TimeControl "300+3"]

1. e4 {[%emt 0:00:03]} Nc6 {[%emt 0:00:03]} 2. Nf3 {[%emt 0:00:04]} e5 {
[%emt 0:00:01]} 3. Nc3 {[%emt 0:00:02]} Nf6 {[%emt 0:00:07]} 4. d4 {[%emt 0:00:
01]} exd4 {[%emt 0:00:01]} 5. Nxd4 {[%emt 0:00:00]} Bb4 {[%emt 0:00:06]} 6.
Nxc6 {[%emt 0:00:01]} bxc6 {[%emt 0:00:01]} 7. Bd3 {[%emt 0:00:01]} O-O {
[%emt 0:00:02]} 8. O-O {[%emt 0:00:01]} Re8 {[%emt 0:00:04]} 9. Bg5 {[%emt 0:
00:13]} h6 {[%emt 0:00:01]} 10. Bh4 {[%emt 0:00:01]} Be7 {[%emt 0:00:02]} 11.
Bg3 {[%emt 0:00:30]} Rb8 {[%emt 0:00:01]} 12. e5 {[%emt 0:00:14]} Nd5 {[%emt 0:
00:05]} 13. Nxd5 {[%emt 0:00:01]} cxd5 {[%emt 0:00:01]} 14. c4 {[%emt 0:00:00]}
Bb7 {[%emt 0:00:06]} 15. cxd5 {[%emt 0:00:14]} Bxd5 {[%emt 0:00:02]} 16. Bh7+ {
[%emt 0:00:02]} Kxh7 {[%emt 0:00:01]} 17. Qxd5 {[%emt 0:00:00]} Kg8 {[%emt 0:
00:04]} 18. b3 {[%emt 0:00:03]} d6 {[%emt 0:00:10]} 19. Rad1 {[%emt 0:00:36]}
Rb6 {[%emt 0:00:05]} 20. Rfe1 {[%emt 0:00:20]} Bf8 {[%emt 0:00:05]} 21. h3 {
[%emt 0:00:15]} c6 {[%emt 0:00:10]} 22. Qa5 {[%emt 0:00:09]} d5 {[%emt 0:00:09]
} 23. Qxa7 {[%emt 0:00:01]} Bb4 {[%emt 0:00:05]} 24. Re2 {[%emt 0:00:06]} Re7 {
[%emt 0:00:03]} 25. Qa4 {[%emt 0:00:03]} Qc8 {[%emt 0:00:46]} 26. a3 {[%emt 0:
00:15]} Re8 {[%emt 0:00:10]} 27. Rc2 {[%emt 0:01:34]} Qb7 {[%emt 0:00:12]} 28.
Rxd5 {[%emt 0:00:16]} Bxa3 {[%emt 0:01:01]} 29. Rd3 {[%emt 0:00:14]} Bf8 {
[%emt 0:00:11]} 30. Qc4 {[%emt 0:00:03]} c5 {[%emt 0:00:04]} 31. Rcd2 {[%emt 0:
00:03]} Qc6 {[%emt 0:00:18]} 32. Rf3 {[%emt 0:00:14]} Qe6 {[%emt 0:00:11]} 33.
Qxe6 {[%emt 0:00:01]} fxe6 {[%emt 0:00:02]} 34. h4 {[%emt 0:00:12]} Reb8 {
[%emt 0:00:14]} 35. Rdd3 {[%emt 0:00:01]} Be7 {[%emt 0:00:07]} 36. h5 {[%emt 0:
00:01]} Bg5 {[%emt 0:00:02]} 37. Rc3 {[%emt 0:00:01]} Bd2 {[%emt 0:00:25]} 38.
Rxc5 {[%emt 0:00:08]} Rxb3 {[%emt 0:00:01]} 39. Rxb3 {[%emt 0:00:00]} Rxb3 {
[%emt 0:00:01]} 40. Rc6 {[%emt 0:00:00]} Kf7 {[%emt 0:00:01]} 41. Rc7+ {
[%emt 0:00:01]} Kf8 {[%emt 0:00:01]} 42. Kh2 {[%emt 0:00:08]} Rb4 {[%emt 0:00:
02]} 43. Rc6 {[%emt 0:00:06]} Kf7 {[%emt 0:00:01]} 44. Kh3 {[%emt 0:00:02]} Bf4
{[%emt 0:00:04]} 45. Rc7+ {[%emt 0:00:00]} Kf8 {[%emt 0:00:03]} 46. f3 {
[%emt 0:00:06]} Bxg3 {[%emt 0:00:08]} 47. Kxg3 {[%emt 0:00:00]} Rb5 {[%emt 0:
00:05]} 48. f4 {[%emt 0:00:00]} Rb3+ {[%emt 0:00:06]} 49. Kg4 {[%emt 0:00:01]}
Rb4 {[%emt 0:00:01]} 50. g3 {[%emt 0:00:01]} Ra4 {[%emt 0:00:00]} 51. Rb7 {
[%emt 0:00:00]} Rc4 {[%emt 0:00:02]} 52. Rb3 {[%emt 0:00:03]} Kf7 {[%emt 0:00:
01]} 53. Kf3 {[%emt 0:00:01]} Rc1 {[%emt 0:00:02]} 54. g4 {[%emt 0:00:02]} Rf1+
{[%emt 0:00:02]} 55. Ke4 {[%emt 0:00:01]} Re1+ {[%emt 0:00:01]} 56. Re3 {
[%emt 0:00:01]} Rg1 {[%emt 0:00:02]} 57. Kf3 {[%emt 0:00:04]} Rf1+ {[%emt 0:00:
00]} 58. Kg3 {[%emt 0:00:00]} Rg1+ {[%emt 0:00:01]} 59. Kh3 {[%emt 0:00:02]}
Rf1 {[%emt 0:00:01]} 60. Re4 {[%emt 0:00:01]} Rf3+ {[%emt 0:00:06]} 61. Kg2 {
[%emt 0:00:01]} Ra3 {[%emt 0:00:01]} 62. f5 {[%emt 0:00:48]} Ra1 {[%emt 0:00:
02]} 63. Rb4 {[%emt 0:00:04]} Re1 {[%emt 0:00:05]} 64. Rb5 {[%emt 0:00:02]} Re4
{[%emt 0:00:18]} 65. Kf3 {[%emt 0:00:01]} exf5 {[%emt 0:00:04]} 66. gxf5 {
[%emt 0:00:00]} Rh4 {[%emt 0:00:00]} 67. Rb7+ {[%emt 0:00:08]} Kf8 {[%emt 0:00:
01]} 68. Rb8+ {[%emt 0:00:06]} Ke7 {[%emt 0:00:05]} 69. Rb7+ {[%emt 0:00:15]}
Kf8 {[%emt 0:00:01]} 70. e6 {[%emt 0:00:01]} Rxh5 {[%emt 0:00:11]} 71. Rb8+ {
[%emt 0:00:03]} Ke7 {[%emt 0:00:01]} 72. Rb7+ {[%emt 0:00:00]} Kf8 {[%emt 0:00:
03]} 73. Kf4 {[%emt 0:00:08]} Rh1 {[%emt 0:00:03]} 74. Rb8+ {[%emt 0:00:01]}
Ke7 {[%emt 0:00:01]} 75. Rb7+ {[%emt 0:00:00]} Kf8 {[%emt 0:00:01]} 76. Rf7+ {
[%emt 0:00:20]} Kg8 {[%emt 0:00:01]} 77. Rd7 {[%emt 0:00:00]} Re1 {[%emt 0:00:
22]} 78. Rd8+ {[%emt 0:00:04]} Kh7 {[%emt 0:00:01]} 79. Rd7 {[%emt 0:00:03]}
Kg8 {[%emt 0:00:01]} 80. Rd8+ {[%emt 0:00:02]} Kh7 {[%emt 0:00:01]} 81. Kg4 {
[%emt 0:00:06]} Re4+ {[%emt 0:00:06]} 82. Kf3 {[%emt 0:00:01]} Re5 {[%emt 0:00:
02]} 83. Kf4 {[%emt 0:00:01]} Re1 {[%emt 0:00:01]} 1/2-1/2

[Event "Saint Louis Blitz 2020"]
[Site "Saint Louis"]
[Date "2020.09.18"]
[Round "7"]
[White "Nepomniachtchi, Ian"]
[Black "Harikrishna, Pentala"]
[Result "1/2-1/2"]
[ECO "A01"]
[WhiteElo "2784"]
[BlackElo "2732"]
[Annotator "RC"]
[PlyCount "234"]
[EventDate "2020.09.18"]
[EventType "blitz"]
[EventCountry "USA"]
[SourceTitle "playchess.com"]
[Source "ChessBase"]
[SourceQuality "1"]
[TimeControl "300+3"]

1. b3 {[%emt 0:00:03]} d5 {[%emt 0:00:03]} 2. Bb2 {[%emt 0:00:01]} c6 {[%emt 0:
00:01]} 3. d3 {[%emt 0:00:11]} Bf5 {[%emt 0:00:13]} 4. Nd2 {[%emt 0:00:01]} h6
{[%emt 0:00:11]} 5. g3 {[%emt 0:00:03]} a5 {[%emt 0:00:05]} 6. a3 {[%emt 0:00:
03]} Nd7 {[%emt 0:00:04]} 7. Bg2 {[%emt 0:00:01]} e6 {[%emt 0:00:09]} 8. e4 {
[%emt 0:00:02]} Bh7 {[%emt 0:00:02]} 9. Qe2 {[%emt 0:00:04]} Ngf6 {[%emt 0:00:
07]} 10. e5 {[%emt 0:00:11]} Ng8 {[%emt 0:00:02]} 11. Nh3 {[%emt 0:00:01]} Ne7
{[%emt 0:00:14]} 12. Nf4 {[%emt 0:00:03]} Qc7 {[%emt 0:00:25]} 13. Nh5 {
[%emt 0:00:20]} g6 {[%emt 0:00:10]} 14. Nf6+ {[%emt 0:00:08]} Nxf6 {[%emt 0:00:
01]} 15. exf6 {[%emt 0:00:00]} Nf5 {[%emt 0:00:27]} 16. O-O {[%emt 0:00:05]} g5
{[%emt 0:00:09]} 17. Nf3 {[%emt 0:00:03]} Bd6 {[%emt 0:00:14]} 18. Ne5 {
[%emt 0:00:02]} c5 {[%emt 0:00:15]} 19. Rae1 {[%emt 0:00:50]} O-O-O {[%emt 0:
00:20]} 20. b4 {[%emt 0:00:17]} Nd4 {[%emt 0:00:11]} 21. Bxd4 {[%emt 0:00:05]}
cxd4 {[%emt 0:00:00]} 22. Nf3 {[%emt 0:00:14]} axb4 {[%emt 0:00:28]} 23. axb4 {
[%emt 0:00:00]} Bxb4 {[%emt 0:00:01]} 24. Rb1 {[%emt 0:00:02]} Bc5 {[%emt 0:00:
22]} 25. Ra1 {[%emt 0:00:07]} Kb8 {[%emt 0:00:50]} 26. Ra2 {[%emt 0:00:03]} e5
{[%emt 0:00:02]} 27. Rfa1 {[%emt 0:00:04]} Qd6 {[%emt 0:00:01]} 28. Qxe5 {
[%emt 0:00:38]} Rhe8 {[%emt 0:00:44]} 29. Ra8+ {[%emt 0:00:26]} Kc7 {[%emt 0:
00:02]} 30. Qxe8 {[%emt 0:00:00]} Rxe8 {[%emt 0:00:01]} 31. Rxe8 {[%emt 0:00:
00]} Qxf6 {[%emt 0:00:01]} 32. Ne5 {[%emt 0:00:01]} Bd6 {[%emt 0:00:11]} 33.
Re1 {[%emt 0:00:14]} Bf5 {[%emt 0:00:18]} 34. Bxd5 {[%emt 0:00:04]} Bxe5 {
[%emt 0:00:02]} 35. R8xe5 {[%emt 0:00:38]} Kd6 {[%emt 0:00:02]} 36. Bxb7 {
[%emt 0:00:12]} Qxe5 {[%emt 0:00:02]} 37. Rxe5 {[%emt 0:00:00]} Kxe5 {[%emt 0:
00:00]} 38. Kf1 {[%emt 0:00:00]} f6 {[%emt 0:00:08]} 39. Ke2 {[%emt 0:00:02]}
Kd6 {[%emt 0:00:02]} 40. Kd2 {[%emt 0:00:04]} Kc5 {[%emt 0:00:05]} 41. Be4 {
[%emt 0:00:06]} Bd7 {[%emt 0:00:07]} 42. c3 {[%emt 0:00:01]} dxc3+ {[%emt 0:00:
04]} 43. Kxc3 {[%emt 0:00:01]} Be6 {[%emt 0:00:00]} 44. d4+ {[%emt 0:00:03]}
Kd6 {[%emt 0:00:01]} 45. Kb4 {[%emt 0:00:01]} Bf7 {[%emt 0:00:03]} 46. Kb5 {
[%emt 0:00:02]} Bd5 {[%emt 0:00:02]} 47. Bd3 {[%emt 0:00:01]} Be6 {[%emt 0:00:
04]} 48. Bc4 {[%emt 0:00:02]} Bd7+ {[%emt 0:00:05]} 49. Kb4 {[%emt 0:00:02]}
Bc6 {[%emt 0:00:02]} 50. Kc3 {[%emt 0:00:01]} Be4 {[%emt 0:00:01]} 51. Kd2 {
[%emt 0:00:01]} Bf5 {[%emt 0:00:02]} 52. Ke3 {[%emt 0:00:01]} Bg6 {[%emt 0:00:
09]} 53. Bd3 {[%emt 0:00:01]} Bf7 {[%emt 0:00:03]} 54. Bf5 {[%emt 0:00:01]} Bd5
{[%emt 0:00:02]} 55. Be4 {[%emt 0:00:07]} Bb3 {[%emt 0:00:02]} 56. Bb7 {
[%emt 0:00:03]} Bc2 {[%emt 0:00:03]} 57. Kf3 {[%emt 0:00:02]} Bd1+ {[%emt 0:00:
02]} 58. Ke4 {[%emt 0:00:02]} Bc2+ {[%emt 0:00:00]} 59. Ke3 {[%emt 0:00:00]}
Bb3 {[%emt 0:00:01]} 60. Bf3 {[%emt 0:00:05]} Bf7 {[%emt 0:00:05]} 61. Be2 {
[%emt 0:00:02]} Bd5 {[%emt 0:00:03]} 62. f4 {[%emt 0:00:05]} Bc6 {[%emt 0:00:
10]} 63. Bf3 {[%emt 0:00:01]} Ba4 {[%emt 0:00:05]} 64. Be4 {[%emt 0:00:03]} Bb3
{[%emt 0:00:02]} 65. Bd3 {[%emt 0:00:06]} Bd5 {[%emt 0:00:02]} 66. Bc2 {
[%emt 0:00:01]} Bc6 {[%emt 0:00:02]} 67. Bb3 {[%emt 0:00:02]} Bg2 {[%emt 0:00:
04]} 68. Bd1 {[%emt 0:00:02]} Bd5 {[%emt 0:00:01]} 69. Bc2 {[%emt 0:00:01]} Bc6
{[%emt 0:00:05]} 70. Be4 {[%emt 0:00:00]} Ba4 {[%emt 0:00:01]} 71. Ke2 {
[%emt 0:00:01]} Bb3 {[%emt 0:00:03]} 72. Bg6 {[%emt 0:00:04]} Bd5 {[%emt 0:00:
03]} 73. Ke3 {[%emt 0:00:02]} Bb3 {[%emt 0:00:02]} 74. Bh5 {[%emt 0:00:04]} Bd5
{[%emt 0:00:04]} 75. Bd1 {[%emt 0:00:01]} Bc6 {[%emt 0:00:02]} 76. Bb3 {
[%emt 0:00:06]} Bg2 {[%emt 0:00:02]} 77. Kd2 {[%emt 0:00:02]} Be4 {[%emt 0:00:
01]} 78. Kc3 {[%emt 0:00:01]} Bc6 {[%emt 0:00:03]} 79. Bc2 {[%emt 0:00:02]} Bd5
{[%emt 0:00:01]} 80. Kd3 {[%emt 0:00:01]} Bc6 {[%emt 0:00:04]} 81. Ke3 {
[%emt 0:00:07]} Bd5 {[%emt 0:00:01]} 82. h4 {[%emt 0:00:01]} Bc6 {[%emt 0:00:
07]} 83. Be4 {[%emt 0:00:01]} Ba4 {[%emt 0:00:04]} 84. Bb7 {[%emt 0:00:03]} Bc2
{[%emt 0:00:03]} 85. Kf3 {[%emt 0:00:01]} Bd1+ {[%emt 0:00:01]} 86. Kg2 {
[%emt 0:00:01]} Bb3 {[%emt 0:00:05]} 87. Bf3 {[%emt 0:00:05]} Be6 {[%emt 0:00:
07]} 88. Be4 {[%emt 0:00:01]} Bb3 {[%emt 0:00:03]} 89. Kh3 {[%emt 0:00:02]}
Be6+ {[%emt 0:00:05]} 90. Kh2 {[%emt 0:00:02]} Bc4 {[%emt 0:00:05]} 91. Kg2 {
[%emt 0:00:01]} Be6 {[%emt 0:00:01]} 92. Kf3 {[%emt 0:00:02]} Bd7 {[%emt 0:00:
04]} 93. Bb7 {[%emt 0:00:09]} Bf5 {[%emt 0:00:02]} 94. Ba8 {[%emt 0:00:02]} Be6
{[%emt 0:00:04]} 95. Ke4 {[%emt 0:00:02]} Bh3 {[%emt 0:00:01]} 96. Kf3 {
[%emt 0:00:03]} Bf5 {[%emt 0:00:01]} 97. Bb7 {[%emt 0:00:02]} Be6 {[%emt 0:00:
02]} 98. Ke4 {[%emt 0:00:03]} Bh3 {[%emt 0:00:02]} 99. Ba6 {[%emt 0:00:01]} Bd7
{[%emt 0:00:03]} 100. Bc4 {[%emt 0:00:01]} Bh3 {[%emt 0:00:03]} 101. Bg8 {
[%emt 0:00:02]} Bd7 {[%emt 0:00:02]} 102. Bh7 {[%emt 0:00:20]} Be6 {[%emt 0:00:
03]} 103. Bg6 {[%emt 0:00:02]} Bd7 {[%emt 0:00:02]} 104. d5 {[%emt 0:00:02]}
Bh3 {[%emt 0:00:02]} 105. Bf7 {[%emt 0:00:06]} Bd7 {[%emt 0:00:06]} 106. h5 {
[%emt 0:00:19]} Bg4 {[%emt 0:00:05]} 107. Be6 {[%emt 0:00:01]} Bxh5 {[%emt 0:
00:08]} 108. Kf5 {[%emt 0:00:02]} gxf4 {[%emt 0:00:01]} 109. gxf4 {[%emt 0:00:
02]} Ke7 {[%emt 0:00:01]} 110. d6+ {[%emt 0:00:02]} Kxd6 {[%emt 0:00:01]} 111.
Kxf6 {[%emt 0:00:00]} Be2 {[%emt 0:00:02]} 112. Bh3 {[%emt 0:00:03]} h5 {
[%emt 0:00:06]} 113. Kg5 {[%emt 0:00:02]} Ke7 {[%emt 0:00:01]} 114. f5 {
[%emt 0:00:02]} Kf7 {[%emt 0:00:03]} 115. f6 {[%emt 0:00:00]} Bg4 {[%emt 0:00:
01]} 116. Bxg4 {[%emt 0:00:01]} hxg4 {[%emt 0:00:00]} 117. Kxg4 {[%emt 0:00:00]
} Kxf6 {[%emt 0:00:04]} 1/2-1/2

[Event "Saint Louis Blitz 2020"]
[Site "Saint Louis"]
[Date "2020.09.18"]
[Round "7"]
[White "Grischuk, Alexander"]
[Black "Xiong, Jeffery"]
[Result "1/2-1/2"]
[ECO "B06"]
[WhiteElo "2777"]
[BlackElo "2709"]
[Annotator "RC"]
[PlyCount "84"]
[EventDate "2020.09.18"]
[EventType "blitz"]
[EventCountry "USA"]
[SourceTitle "playchess.com"]
[Source "ChessBase"]
[SourceQuality "1"]
[TimeControl "300+3"]

1. d4 {[%emt 0:00:03]} g6 {[%emt 0:00:03]} 2. e4 {[%emt 0:00:01]} Bg7 {[%emt 0:
00:01]} 3. Nf3 {[%emt 0:00:01]} d6 {[%emt 0:00:00]} 4. Bd3 {[%emt 0:00:01]} Nc6
{[%emt 0:00:01]} 5. O-O {[%emt 0:00:02]} e5 {[%emt 0:00:29]} 6. dxe5 {[%emt 0:
00:32]} Nxe5 {[%emt 0:00:06]} 7. Nxe5 {[%emt 0:00:01]} dxe5 {[%emt 0:00:04]} 8.
Bc4 {[%emt 0:00:10]} Be6 {[%emt 0:01:38]} 9. Bxe6 {[%emt 0:00:04]} fxe6 {
[%emt 0:00:00]} 10. a4 {[%emt 0:00:19]} Nf6 {[%emt 0:00:02]} 11. f3 {[%emt 0:
00:26]} Qe7 {[%emt 0:00:41]} 12. Be3 {[%emt 0:00:23]} O-O {[%emt 0:00:01]} 13.
Nd2 {[%emt 0:00:19]} Rfd8 {[%emt 0:00:06]} 14. Qe2 {[%emt 0:00:02]} Bf8 {
[%emt 0:00:06]} 15. Qb5 {[%emt 0:00:22]} Nd7 {[%emt 0:00:43]} 16. Nc4 {[%emt 0:
00:11]} Rab8 {[%emt 0:00:17]} 17. Bxa7 {[%emt 0:00:45]} c6 {[%emt 0:00:02]} 18.
Qb3 {[%emt 0:00:01]} b5 {[%emt 0:00:01]} 19. axb5 {[%emt 0:00:04]} cxb5 {
[%emt 0:00:11]} 20. Na5 {[%emt 0:00:37]} Nc5 {[%emt 0:00:01]} 21. Bxc5 {
[%emt 0:00:01]} Qxc5+ {[%emt 0:00:00]} 22. Kh1 {[%emt 0:00:01]} Rd6 {[%emt 0:
00:34]} 23. c3 {[%emt 0:00:26]} b4 {[%emt 0:00:15]} 24. Qc4 {[%emt 0:00:16]}
Qb6 {[%emt 0:00:25]} 25. Qe2 {[%emt 0:00:24]} bxc3 {[%emt 0:00:05]} 26. bxc3 {
[%emt 0:00:04]} Qc5 {[%emt 0:00:04]} 27. h3 {[%emt 0:00:21]} Bh6 {[%emt 0:00:
03]} 28. Qc4 {[%emt 0:00:13]} Qb6 {[%emt 0:00:06]} 29. Qe2 {[%emt 0:00:02]} Qc5
{[%emt 0:00:01]} 30. Qc4 {[%emt 0:00:02]} Qb6 {[%emt 0:00:01]} 31. Qa4 {
[%emt 0:00:09]} Qc5 {[%emt 0:00:06]} 32. Nc4 {[%emt 0:00:02]} Rd3 {[%emt 0:00:
04]} 33. Qa6 {[%emt 0:00:01]} Re8 {[%emt 0:00:11]} 34. Nxe5 {[%emt 0:00:07]}
Rxc3 {[%emt 0:00:00]} 35. Ng4 {[%emt 0:00:02]} Bg7 {[%emt 0:00:00]} 36. e5 {
[%emt 0:00:02]} Qe7 {[%emt 0:00:12]} 37. Qa5 {[%emt 0:00:06]} Rc5 {[%emt 0:00:
02]} 38. Qb4 {[%emt 0:00:05]} Bxe5 {[%emt 0:00:02]} 39. Nxe5 {[%emt 0:00:03]}
Rxe5 {[%emt 0:00:00]} 40. Qxe7 {[%emt 0:00:03]} Rxe7 {[%emt 0:00:00]} 41. Rae1
{[%emt 0:00:01]} Rxe1 {[%emt 0:00:02]} 42. Rxe1 {[%emt 0:00:00]} Kf7 {[%emt 0:
00:02]} 1/2-1/2

[Event "Saint Louis Blitz 2020"]
[Site "Saint Louis"]
[Date "2020.09.18"]
[Round "7"]
[White "Dominguez Perez, Leinier"]
[Black "So, Wesley"]
[Result "1/2-1/2"]
[ECO "C67"]
[WhiteElo "2758"]
[BlackElo "2770"]
[Annotator "ChessBase"]
[PlyCount "73"]
[EventDate "2020.09.18"]
[EventType "blitz"]
[EventCountry "USA"]
[SourceTitle "playchess.com"]
[Source "ChessBase"]
[SourceQuality "1"]
[TimeControl "300+3"]

1. e4 {[%emt 0:00:03]} e5 {[%emt 0:00:03]} 2. Nf3 {[%emt 0:00:01]} Nc6 {
[%emt 0:00:01]} 3. Bb5 {[%emt 0:00:02]} Nf6 {[%emt 0:00:00]} 4. O-O {[%emt 0:
00:06]} Nxe4 {[%emt 0:00:02]} 5. Re1 {[%emt 0:00:02]} Nd6 {[%emt 0:00:01]} 6.
Nxe5 {[%emt 0:00:01]} Be7 {[%emt 0:00:00]} 7. Bd3 {[%emt 0:00:03]} Nxe5 {
[%emt 0:00:31]} 8. Rxe5 {[%emt 0:00:00]} O-O {[%emt 0:00:01]} 9. Nc3 {[%emt 0:
00:02]} Bf6 {[%emt 0:00:06]} 10. Re3 {[%emt 0:00:27]} Bg5 {[%emt 0:00:17]} 11.
Re1 {[%emt 0:00:19]} b6 {[%emt 0:00:27]} 12. Bf1 {[%emt 0:00:22]} Bb7 {[%emt 0:
00:05]} 13. d4 {[%emt 0:00:01]} Bxc1 {[%emt 0:00:08]} 14. Qxc1 {[%emt 0:00:11]}
Qf6 {[%emt 0:00:19]} 15. Qd2 {[%emt 0:00:10]} Rae8 {[%emt 0:00:03]} 16. Nb5 {
[%emt 0:00:42]} Nxb5 {[%emt 0:00:15]} 17. Bxb5 {[%emt 0:00:02]} Bc6 {[%emt 0:
00:13]} 18. Bf1 {[%emt 0:00:43]} d5 {[%emt 0:00:22]} 19. c3 {[%emt 0:00:14]}
Bd7 {[%emt 0:00:14]} 20. Rxe8 {[%emt 0:00:11]} Rxe8 {[%emt 0:00:01]} 21. Re1 {
[%emt 0:00:00]} Rxe1 {[%emt 0:00:01]} 22. Qxe1 {[%emt 0:00:02]} Qe6 {[%emt 0:
00:06]} 23. Qxe6 {[%emt 0:00:05]} Bxe6 {[%emt 0:00:00]} 24. Bd3 {[%emt 0:00:04]
} g5 {[%emt 0:00:07]} 25. g3 {[%emt 0:00:05]} h6 {[%emt 0:00:01]} 26. f3 {
[%emt 0:00:07]} Kf8 {[%emt 0:00:08]} 27. Kf2 {[%emt 0:00:01]} Ke7 {[%emt 0:00:
01]} 28. Ke3 {[%emt 0:00:00]} Kd6 {[%emt 0:00:01]} 29. a3 {[%emt 0:00:05]} a5 {
[%emt 0:00:03]} 30. f4 {[%emt 0:00:02]} f6 {[%emt 0:00:02]} 31. Bc2 {[%emt 0:
00:05]} Bd7 {[%emt 0:00:03]} 32. Bd3 {[%emt 0:00:05]} Be6 {[%emt 0:00:04]} 33.
b4 {[%emt 0:00:02]} Bd7 {[%emt 0:00:03]} 34. Bc2 {[%emt 0:00:08]} Be6 {[%emt 0:
00:08]} 35. Bd3 {[%emt 0:00:07]} Bd7 {[%emt 0:00:01]} 36. Bc2 {[%emt 0:00:03]}
Be6 {[%emt 0:00:01]} 37. Bd3 {[%emt 0:00:01]} 1/2-1/2